[Event "Titled Tuesday Blitz June 1 2021"]
[White "Odegov, Artem"]
[Black "Tanenbaum, Zachary"]
[WhiteFideId "34183644"]
[BlackFideId "2060850"]
[WhiteElo "2270"]
[BlackElo "2165"]
[Result "0-1"]
[Round "11"]
[TimeControl "180+1"]
[Date "2021.06.01"]
[WhiteClock "0:00:10"]
[BlackClock "0:01:32"]

1. d4 {[%clk 0:03:00]}  d5 {[%clk 0:03:00]} 2. c4 {[%clk 0:03:01]}  dxc4 {[%clk 0:03:01]} 3. Nf3 {[%clk 0:03:01]}  a6 {[%clk 0:03:01]} 4. e4 {[%clk 0:03:00]}  b5 {[%clk 0:03:00]} 5. a4 {[%clk 0:03:00]}  Bb7 {[%clk 0:02:59]} 6. axb5 {[%clk 0:02:57]}  axb5 {[%clk 0:03:00]} 7. Rxa8 {[%clk 0:02:56]}  Bxa8 {[%clk 0:03:01]} 8. d5 {[%clk 0:02:47]}  c6 {[%clk 0:02:54]} 9. Nc3 {[%clk 0:02:46]}  b4 {[%clk 0:02:44]} 10. Qa4 {[%clk 0:02:32]}  bxc3 {[%clk 0:02:42]} 11. Qxa8 {[%clk 0:02:32]}  e6 {[%clk 0:02:19]} 12. bxc3 {[%clk 0:02:23]}  exd5 {[%clk 0:02:06]} 13. Be2 {[%clk 0:02:21]}  Nf6 {[%clk 0:02:03]} 14. exd5 {[%clk 0:02:00]}  cxd5 {[%clk 0:02:03]} 15. O-O {[%clk 0:01:59]}  Bd6 {[%clk 0:01:58]} 16. Nd4 {[%clk 0:01:42]}  O-O {[%clk 0:01:54]} 17. Bg5 {[%clk 0:01:38]}  Nbd7 {[%clk 0:01:48]} 18. Qa6 {[%clk 0:00:59]}  Nc5 {[%clk 0:01:36]} 19. Qc6 {[%clk 0:00:51]}  Nce4 {[%clk 0:01:36]} 20. Bxf6 {[%clk 0:00:37]}  Qxf6 {[%clk 0:01:37]} 21. Qxd5 {[%clk 0:00:26]}  Nxc3 {[%clk 0:01:36]} 22. Qxc4 {[%clk 0:00:11]}  Qxd4 {[%clk 0:01:36]} 23. Qxd4 {[%clk 0:00:04]}  Nxe2+ {[%clk 0:01:36]} 24. Kh1 {[%clk 0:00:04]}  Nxd4 {[%clk 0:01:37]} 25. Rd1 {[%clk 0:00:05]}  Bc5 {[%clk 0:01:36]} 26. Rc1 {[%clk 0:00:05]}  Re8 {[%clk 0:01:35]} 27. h4 {[%clk 0:00:05]}  Bb4 {[%clk 0:01:32]} 28. g3 {[%clk 0:00:05]}  Re1+ {[%clk 0:01:31]} 29. Rxe1 {[%clk 0:00:03]}  Bxe1 {[%clk 0:01:32]} 30. Kg2 {[%clk 0:00:04]}  f5 {[%clk 0:01:32]} 31. f4 {[%clk 0:00:04]}  Ne2 {[%clk 0:01:31]} 32. Kf3 {[%clk 0:00:03]}  Nxg3 {[%clk 0:01:30]} 33. h5 {[%clk 0:00:04]}  Nxh5 {[%clk 0:01:30]} 34. Kg2 {[%clk 0:00:05]}  Nxf4+ {[%clk 0:01:30]} 35. Kh2 {[%clk 0:00:06]}  Bd2 {[%clk 0:01:30]} 36. Kh1 {[%clk 0:00:06]}  g5 {[%clk 0:01:30]} 37. Kg1 {[%clk 0:00:07]}  g4 {[%clk 0:01:31]} 38. Kh1 {[%clk 0:00:08]}  g3 {[%clk 0:01:31]} 39. Kg1 {[%clk 0:00:09]}  Be3+ {[%clk 0:01:31]} 40. Kf1 {[%clk 0:00:09]}  g2+ {[%clk 0:01:32]} 41. Ke1 {[%clk 0:00:10]}  g1=Q# {[%clk 0:01:32]} 0-1


[Site "https://www.chess.com"]

[Event "Titled Tuesday Blitz June 1 2021"]
[White "Ozkan, Ervin"]
[Black "Dang, Hoang Son"]
[WhiteFideId "6306004"]
[BlackFideId "12402435"]
[WhiteElo "2226"]
[BlackElo "2248"]
[Result "1/2-1/2"]
[Round "11"]
[TimeControl "180+1"]
[Date "2021.06.01"]
[WhiteClock "0:00:15"]
[BlackClock "0:00:11"]

1. d4 {[%clk 0:03:00]}  Nf6 {[%clk 0:02:59]} 2. Nf3 {[%clk 0:03:00]}  g6 {[%clk 0:03:00]} 3. Bf4 {[%clk 0:03:00]}  Bg7 {[%clk 0:03:01]} 4. e3 {[%clk 0:03:00]}  O-O {[%clk 0:03:02]} 5. h3 {[%clk 0:03:01]}  d6 {[%clk 0:03:03]} 6. Be2 {[%clk 0:03:01]}  c5 {[%clk 0:03:04]} 7. c3 {[%clk 0:03:01]}  Nc6 {[%clk 0:03:04]} 8. O-O {[%clk 0:03:00]}  Be6 {[%clk 0:03:05]} 9. dxc5 {[%clk 0:02:41]}  dxc5 {[%clk 0:03:03]} 10. Nbd2 {[%clk 0:02:42]}  Qb6 {[%clk 0:02:58]} 11. Qc2 {[%clk 0:02:40]}  Rad8 {[%clk 0:02:54]} 12. Nc4 {[%clk 0:02:35]}  Qa6 {[%clk 0:02:46]} 13. Nfe5 {[%clk 0:02:05]}  b5 {[%clk 0:02:45]} 14. Nxc6 {[%clk 0:01:56]}  Qxc6 {[%clk 0:02:46]} 15. Ne5 {[%clk 0:01:57]}  Qb6 {[%clk 0:02:45]} 16. a4 {[%clk 0:01:54]}  a6 {[%clk 0:02:43]} 17. axb5 {[%clk 0:01:52]}  axb5 {[%clk 0:02:43]} 18. Rfd1 {[%clk 0:01:48]}  c4 {[%clk 0:02:41]} 19. Bf3 {[%clk 0:01:39]}  Bf5 {[%clk 0:02:39]} 20. e4 {[%clk 0:01:35]}  Be6 {[%clk 0:02:34]} 21. Be3 {[%clk 0:01:27]}  Qc7 {[%clk 0:02:34]} 22. Bd4 {[%clk 0:01:27]}  Nh5 {[%clk 0:02:16]} 23. Ra7 {[%clk 0:01:19]}  Qd6 {[%clk 0:02:09]} 24. Nxg6 {[%clk 0:01:08]}  Bxd4 {[%clk 0:01:17]} 25. Nxf8 {[%clk 0:01:06]}  Rxf8 {[%clk 0:01:06]} 26. Rxd4 {[%clk 0:01:04]}  Qc5 {[%clk 0:01:06]} 27. Ra1 {[%clk 0:00:59]}  Nf4 {[%clk 0:01:06]} 28. Qd2 {[%clk 0:00:56]}  Ng6 {[%clk 0:01:06]} 29. Qe3 {[%clk 0:00:54]}  Kg7 {[%clk 0:01:02]} 30. Be2 {[%clk 0:00:53]}  Qe5 {[%clk 0:00:59]} 31. Rf1 {[%clk 0:00:51]}  Nf4 {[%clk 0:00:57]} 32. Bg4 {[%clk 0:00:44]}  Bxg4 {[%clk 0:00:47]} 33. hxg4 {[%clk 0:00:44]}  Qg5 {[%clk 0:00:43]} 34. g3 {[%clk 0:00:42]}  Nh3+ {[%clk 0:00:43]} 35. Kg2 {[%clk 0:00:42]}  Qxe3 {[%clk 0:00:44]} 36. fxe3 {[%clk 0:00:43]}  Ng5 {[%clk 0:00:45]} 37. Rf5 {[%clk 0:00:41]}  Ne6 {[%clk 0:00:43]} 38. Rxb5 {[%clk 0:00:41]}  Nxd4 {[%clk 0:00:37]} 39. exd4 {[%clk 0:00:42]}  Rc8 {[%clk 0:00:37]} 40. g5 {[%clk 0:00:41]}  Kg6 {[%clk 0:00:37]} 41. Kf3 {[%clk 0:00:41]}  e6 {[%clk 0:00:37]} 42. Ke3 {[%clk 0:00:41]}  Ra8 {[%clk 0:00:36]} 43. d5 {[%clk 0:00:34]}  exd5 {[%clk 0:00:35]} 44. Rxd5 {[%clk 0:00:35]}  Rb8 {[%clk 0:00:34]} 45. Rd2 {[%clk 0:00:28]}  Kxg5 {[%clk 0:00:33]} 46. Rf2 {[%clk 0:00:27]}  Kg6 {[%clk 0:00:30]} 47. Kd4 {[%clk 0:00:28]}  Rc8 {[%clk 0:00:30]} 48. e5 {[%clk 0:00:27]}  Rc7 {[%clk 0:00:27]} 49. Kd5 {[%clk 0:00:25]}  h5 {[%clk 0:00:25]} 50. Kd6 {[%clk 0:00:23]}  Rb7 {[%clk 0:00:26]} 51. Kc6 {[%clk 0:00:21]}  Re7 {[%clk 0:00:25]} 52. Kd6 {[%clk 0:00:20]}  Rb7 {[%clk 0:00:25]} 53. Rf6+ {[%clk 0:00:20]}  Kg5 {[%clk 0:00:25]} 54. Rf4 {[%clk 0:00:20]}  Rxb2 {[%clk 0:00:22]} 55. Rxc4 {[%clk 0:00:21]}  Rb6+ {[%clk 0:00:22]} 56. Ke7 {[%clk 0:00:20]}  Re6+ {[%clk 0:00:22]} 57. Kxf7 {[%clk 0:00:20]}  Rxe5 {[%clk 0:00:23]} 58. Rd4 {[%clk 0:00:17]}  Re3 {[%clk 0:00:23]} 59. c4 {[%clk 0:00:17]}  Rxg3 {[%clk 0:00:23]} 60. c5 {[%clk 0:00:17]}  Rc3 {[%clk 0:00:23]} 61. Rd5+ {[%clk 0:00:17]}  Kg4 {[%clk 0:00:24]} 62. Ke6 {[%clk 0:00:18]}  h4 {[%clk 0:00:24]} 63. Kd6 {[%clk 0:00:18]}  h3 {[%clk 0:00:25]} 64. Rd4+ {[%clk 0:00:18]}  Kg5 {[%clk 0:00:25]} 65. Rd1 {[%clk 0:00:16]}  Kf4 {[%clk 0:00:20]} 66. c6 {[%clk 0:00:16]}  h2 {[%clk 0:00:18]} 67. c7 {[%clk 0:00:15]}  Kg3 {[%clk 0:00:17]} 68. Kd7 {[%clk 0:00:14]}  Rc2 {[%clk 0:00:15]} 69. Rd3+ {[%clk 0:00:14]}  Kg2 {[%clk 0:00:13]} 70. Rd1 {[%clk 0:00:13]}  h1=Q {[%clk 0:00:10]} 71. Rxh1 {[%clk 0:00:13]}  Kxh1 {[%clk 0:00:11]} 72. c8=Q {[%clk 0:00:14]}  Rxc8 {[%clk 0:00:11]} 73. Kxc8 {[%clk 0:00:15]} 1/2-1/2


[Site "https://www.chess.com"]

[Event "Titled Tuesday Blitz June 1 2021"]
[White "Piesik, Piotr"]
[Black "Muthaiah AL"]
[WhiteFideId "1136194"]
[BlackFideId "5092442"]
[WhiteElo "2369"]
[BlackElo "2184"]
[Result "1-0"]
[Round "11"]
[TimeControl "180+1"]
[Date "2021.06.01"]
[WhiteClock "0:00:04"]
[BlackClock "0:00:02"]

1. Nf3 {[%clk 0:03:00]}  Nf6 {[%clk 0:02:56]} 2. g3 {[%clk 0:03:00]}  d5 {[%clk 0:02:54]} 3. Bg2 {[%clk 0:03:01]}  Nc6 {[%clk 0:02:51]} 4. O-O {[%clk 0:03:02]}  e5 {[%clk 0:02:50]} 5. d3 {[%clk 0:03:02]}  h6 {[%clk 0:02:48]} 6. Nbd2 {[%clk 0:03:02]}  Be6 {[%clk 0:02:47]} 7. e4 {[%clk 0:03:03]}  dxe4 {[%clk 0:02:47]} 8. dxe4 {[%clk 0:03:03]}  Bc5 {[%clk 0:02:45]} 9. c3 {[%clk 0:03:02]}  Qd3 {[%clk 0:02:42]} 10. Ne1 {[%clk 0:03:02]}  Qd7 {[%clk 0:02:41]} 11. Qe2 {[%clk 0:03:01]}  O-O-O {[%clk 0:02:33]} 12. b4 {[%clk 0:03:01]}  Bb6 {[%clk 0:02:30]} 13. Nc4 {[%clk 0:03:01]}  Qd1 {[%clk 0:02:24]} 14. Nxb6+ {[%clk 0:02:51]}  axb6 {[%clk 0:02:21]} 15. Qb5 {[%clk 0:02:50]}  Na7 {[%clk 0:01:48]} 16. Qxe5 {[%clk 0:02:49]}  Nc6 {[%clk 0:01:35]} 17. Qf4 {[%clk 0:02:28]}  Bc4 {[%clk 0:01:27]} 18. Nf3 {[%clk 0:01:47]}  Bxf1 {[%clk 0:01:24]} 19. Bxf1 {[%clk 0:01:48]}  Rhe8 {[%clk 0:01:16]} 20. e5 {[%clk 0:01:39]}  Nd5 {[%clk 0:01:05]} 21. Qxf7 {[%clk 0:01:39]}  Rf8 {[%clk 0:00:39]} 22. Qe6+ {[%clk 0:01:38]}  Kb8 {[%clk 0:00:39]} 23. Nh4 {[%clk 0:01:08]}  Ne3 {[%clk 0:00:25]} 24. Bxe3 {[%clk 0:01:07]}  Qxa1 {[%clk 0:00:24]} 25. Kg2 {[%clk 0:00:57]}  Rde8 {[%clk 0:00:18]} 26. Qb3 {[%clk 0:00:50]}  Nxe5 {[%clk 0:00:18]} 27. Bd4 {[%clk 0:00:42]}  g5 {[%clk 0:00:16]} 28. Bxe5 {[%clk 0:00:39]}  gxh4 {[%clk 0:00:16]} 29. Qd5 {[%clk 0:00:29]}  h3+ {[%clk 0:00:16]} 30. Kg1 {[%clk 0:00:26]}  Re7 {[%clk 0:00:09]} 31. f4 {[%clk 0:00:20]}  Kc8 {[%clk 0:00:08]} 32. Kf2 {[%clk 0:00:18]}  Qb2+ {[%clk 0:00:07]} 33. Kg1 {[%clk 0:00:17]}  Qc1 {[%clk 0:00:05]} 34. Kf2 {[%clk 0:00:17]}  Qc2+ {[%clk 0:00:05]} 35. Kg1 {[%clk 0:00:17]}  Qc1 {[%clk 0:00:05]} 36. Kf2 {[%clk 0:00:17]}  Kb8 {[%clk 0:00:06]} 37. Bxh3 {[%clk 0:00:16]}  Qc2+ {[%clk 0:00:06]} 38. Kg1 {[%clk 0:00:17]}  Qc1+ {[%clk 0:00:05]} 39. Bf1 {[%clk 0:00:17]}  Rfe8 {[%clk 0:00:05]} 40. Kg2 {[%clk 0:00:16]}  Qe3 {[%clk 0:00:05]} 41. Bb5 {[%clk 0:00:14]}  Rxe5 {[%clk 0:00:03]} 42. fxe5 {[%clk 0:00:14]}  Qxe5 {[%clk 0:00:02]} 43. Qxe5 {[%clk 0:00:11]}  Rxe5 {[%clk 0:00:02]} 44. Bd3 {[%clk 0:00:12]}  Re3 {[%clk 0:00:01]} 45. Bc4 {[%clk 0:00:08]}  Rxc3 {[%clk 0:00:02]} 46. Bb3 {[%clk 0:00:08]}  c5 {[%clk 0:00:01]} 47. bxc5 {[%clk 0:00:08]}  bxc5 {[%clk 0:00:02]} 48. Bf7 {[%clk 0:00:07]}  c4 {[%clk 0:00:03]} 49. g4 {[%clk 0:00:07]}  Rc2+ {[%clk 0:00:03]} 50. Kg3 {[%clk 0:00:07]}  b5 {[%clk 0:00:04]} 51. h4 {[%clk 0:00:07]}  Rxa2 {[%clk 0:00:04]} 52. g5 {[%clk 0:00:07]}  hxg5 {[%clk 0:00:05]} 53. hxg5 {[%clk 0:00:08]}  Ra7 {[%clk 0:00:04]} 54. g6 {[%clk 0:00:07]}  Ra6 {[%clk 0:00:05]} 55. g7 {[%clk 0:00:07]}  Kc7 {[%clk 0:00:05]} 56. g8=Q {[%clk 0:00:06]}  Rc6 {[%clk 0:00:04]} 57. Bd5 {[%clk 0:00:05]}  Rc5 {[%clk 0:00:03]} 58. Qf7+ {[%clk 0:00:05]}  Kb6 {[%clk 0:00:03]} 59. Qe6+ {[%clk 0:00:05]}  Ka5 {[%clk 0:00:03]} 60. Kf4 {[%clk 0:00:04]}  Kb4 {[%clk 0:00:03]} 61. Ke3 {[%clk 0:00:04]}  c3 {[%clk 0:00:02]} 62. Bb3 {[%clk 0:00:04]}  Ka3 {[%clk 0:00:02]} 63. Kd3 {[%clk 0:00:04]} 1-0


[Site "https://www.chess.com"]

[Event "Titled Tuesday Blitz June 1 2021"]
[White "Samunenkov, Ihor"]
[Black "Iniyan, P"]
[WhiteFideId "14187086"]
[BlackFideId "25002767"]
[WhiteElo "2242"]
[BlackElo "2400"]
[Result "1-0"]
[Round "11"]
[TimeControl "180+1"]
[Date "2021.06.01"]
[WhiteClock "0:00:08"]
[BlackClock "0:01:56"]

1. d4 {[%clk 0:03:00]}  Nf6 {[%clk 0:02:59]} 2. g3 {[%clk 0:03:01]}  g6 {[%clk 0:03:00]} 3. Bg2 {[%clk 0:03:01]}  Bg7 {[%clk 0:03:00]} 4. e4 {[%clk 0:03:01]}  d6 {[%clk 0:03:00]} 5. Nc3 {[%clk 0:03:02]}  Nbd7 {[%clk 0:02:59]} 6. Nge2 {[%clk 0:03:02]}  e5 {[%clk 0:03:00]} 7. O-O {[%clk 0:03:01]}  O-O {[%clk 0:03:00]} 8. h3 {[%clk 0:03:01]}  a6 {[%clk 0:02:59]} 9. a4 {[%clk 0:03:00]}  Re8 {[%clk 0:02:59]} 10. Be3 {[%clk 0:02:59]}  exd4 {[%clk 0:02:58]} 11. Bxd4 {[%clk 0:02:59]}  Nc5 {[%clk 0:02:57]} 12. e5 {[%clk 0:02:53]}  Nfd7 {[%clk 0:02:53]} 13. exd6 {[%clk 0:02:52]}  cxd6 {[%clk 0:02:53]} 14. Bxg7 {[%clk 0:02:50]}  Kxg7 {[%clk 0:02:54]} 15. Qxd6 {[%clk 0:02:51]}  Qf6 {[%clk 0:02:52]} 16. Qxf6+ {[%clk 0:02:40]}  Nxf6 {[%clk 0:02:53]} 17. Nd4 {[%clk 0:02:41]}  Ne6 {[%clk 0:02:44]} 18. Nxe6+ {[%clk 0:02:38]}  Bxe6 {[%clk 0:02:45]} 19. Rad1 {[%clk 0:02:34]}  Rab8 {[%clk 0:02:44]} 20. g4 {[%clk 0:02:11]}  b5 {[%clk 0:02:41]} 21. axb5 {[%clk 0:02:06]}  axb5 {[%clk 0:02:42]} 22. Rd4 {[%clk 0:01:52]}  b4 {[%clk 0:02:40]} 23. Ne4 {[%clk 0:01:49]}  Nxe4 {[%clk 0:02:31]} 24. Bxe4 {[%clk 0:01:50]}  h5 {[%clk 0:02:32]} 25. f3 {[%clk 0:01:41]}  hxg4 {[%clk 0:02:25]} 26. hxg4 {[%clk 0:01:41]}  f5 {[%clk 0:02:25]} 27. gxf5 {[%clk 0:01:26]}  gxf5 {[%clk 0:02:26]} 28. Bd3 {[%clk 0:01:26]}  Red8 {[%clk 0:02:26]} 29. Rxd8 {[%clk 0:01:08]}  Rxd8 {[%clk 0:02:27]} 30. Kf2 {[%clk 0:00:52]}  b3 {[%clk 0:02:25]} 31. Ke3 {[%clk 0:00:48]}  bxc2 {[%clk 0:02:25]} 32. Bxc2 {[%clk 0:00:49]}  Rb8 {[%clk 0:02:26]} 33. b3 {[%clk 0:00:33]}  Bxb3 {[%clk 0:02:25]} 34. Bxb3 {[%clk 0:00:34]}  Rxb3+ {[%clk 0:02:24]} 35. Kf4 {[%clk 0:00:34]}  Kf6 {[%clk 0:02:24]} 36. Ra1 {[%clk 0:00:33]}  Rb4+ {[%clk 0:02:24]} 37. Kg3 {[%clk 0:00:33]}  Kg5 {[%clk 0:02:25]} 38. Ra2 {[%clk 0:00:31]}  Rb3 {[%clk 0:02:25]} 39. Re2 {[%clk 0:00:30]}  f4+ {[%clk 0:02:25]} 40. Kf2 {[%clk 0:00:31]}  Kf5 {[%clk 0:02:23]} 41. Rd2 {[%clk 0:00:30]}  Rb4 {[%clk 0:02:18]} 42. Rd8 {[%clk 0:00:27]}  Rb6 {[%clk 0:02:16]} 43. Rf8+ {[%clk 0:00:26]}  Rf6 {[%clk 0:02:15]} 44. Ra8 {[%clk 0:00:20]}  Rd6 {[%clk 0:02:14]} 45. Rf8+ {[%clk 0:00:20]}  Ke5 {[%clk 0:02:14]} 46. Re8+ {[%clk 0:00:20]}  Re6 {[%clk 0:02:15]} 47. Ra8 {[%clk 0:00:19]}  Rc6 {[%clk 0:02:04]} 48. Re8+ {[%clk 0:00:17]}  Kd5 {[%clk 0:02:05]} 49. Re4 {[%clk 0:00:16]}  Rc4 {[%clk 0:02:05]} 50. Re8 {[%clk 0:00:15]}  Kd4 {[%clk 0:02:04]} 51. Re4+ {[%clk 0:00:15]}  Kd3 {[%clk 0:02:04]} 52. Re8 {[%clk 0:00:14]}  Rc2+ {[%clk 0:02:04]} 53. Kf1 {[%clk 0:00:15]}  Rc4 {[%clk 0:02:04]} 54. Kf2 {[%clk 0:00:15]}  Rb4 {[%clk 0:02:05]} 55. Rd8+ {[%clk 0:00:14]}  Rd4 {[%clk 0:02:05]} 56. Re8 {[%clk 0:00:15]}  Kd2 {[%clk 0:02:05]} 57. Re2+ {[%clk 0:00:13]}  Kc1 {[%clk 0:02:05]} 58. Re4 {[%clk 0:00:10]}  Rd2+ {[%clk 0:02:03]} 59. Ke1 {[%clk 0:00:09]}  Rd1+ {[%clk 0:02:01]} 60. Ke2 {[%clk 0:00:09]}  Rd2+ {[%clk 0:02:02]} 61. Kf1 {[%clk 0:00:10]}  Rd1+ {[%clk 0:01:59]} 62. Kg2 {[%clk 0:00:10]}  Kd2 {[%clk 0:01:57]} 63. Rxf4 {[%clk 0:00:08]}  Ra1 {[%clk 0:01:54]} 64. Re4 {[%clk 0:00:08]}  Kd3 {[%clk 0:01:54]} 65. Re8 {[%clk 0:00:08]}  Ra7 {[%clk 0:01:52]} 66. f4 {[%clk 0:00:07]}  Kd4 {[%clk 0:01:50]} 67. Kf3 {[%clk 0:00:07]}  Kd5 {[%clk 0:01:51]} 68. f5 {[%clk 0:00:05]}  Kd6 {[%clk 0:01:51]} 69. Kf4 {[%clk 0:00:05]}  Re7 {[%clk 0:01:52]} 70. Rd8+ {[%clk 0:00:05]}  Rd7 {[%clk 0:01:52]} 71. Rxd7+ {[%clk 0:00:05]}  Kxd7 {[%clk 0:01:53]} 72. Kg5 {[%clk 0:00:06]}  Ke7 {[%clk 0:01:53]} 73. Kg6 {[%clk 0:00:06]}  Kf8 {[%clk 0:01:54]} 74. Kf6 {[%clk 0:00:06]}  Kg8 {[%clk 0:01:55]} 75. Ke7 {[%clk 0:00:07]}  Kg7 {[%clk 0:01:56]} 76. f6+ {[%clk 0:00:08]}  Kg6 {[%clk 0:01:56]} 77. f7 {[%clk 0:00:08]} 1-0


[Site "https://www.chess.com"]

[Event "Titled Tuesday Blitz June 1 2021"]
[White "Sawlin, Leonid"]
[Black "Gelman, Alexander"]
[WhiteFideId "4689542"]
[BlackFideId "4118316"]
[WhiteElo "2412"]
[BlackElo "2375"]
[Result "0-1"]
[Round "11"]
[TimeControl "180+1"]
[Date "2021.06.01"]
[WhiteClock "0:01:07"]
[BlackClock "0:00:17"]

1. e4 {[%clk 0:03:00]}  c5 {[%clk 0:02:58]} 2. Nf3 {[%clk 0:02:59]}  e6 {[%clk 0:02:58]} 3. g3 {[%clk 0:02:58]}  Nc6 {[%clk 0:02:58]} 4. Bg2 {[%clk 0:02:58]}  Nf6 {[%clk 0:02:58]} 5. Nc3 {[%clk 0:02:57]}  d6 {[%clk 0:02:58]} 6. O-O {[%clk 0:02:57]}  Be7 {[%clk 0:02:57]} 7. Re1 {[%clk 0:02:58]}  O-O {[%clk 0:02:56]} 8. d4 {[%clk 0:02:58]}  cxd4 {[%clk 0:02:56]} 9. Nxd4 {[%clk 0:02:59]}  Bd7 {[%clk 0:02:56]} 10. Be3 {[%clk 0:02:50]}  a6 {[%clk 0:02:56]} 11. Qe2 {[%clk 0:02:48]}  Rc8 {[%clk 0:02:54]} 12. Rad1 {[%clk 0:02:48]}  Qc7 {[%clk 0:02:51]} 13. f4 {[%clk 0:02:45]}  b5 {[%clk 0:02:50]} 14. a3 {[%clk 0:02:45]}  Na5 {[%clk 0:02:37]} 15. g4 {[%clk 0:02:44]}  Nc4 {[%clk 0:02:34]} 16. Bc1 {[%clk 0:02:44]}  Nxa3 {[%clk 0:02:21]} 17. g5 {[%clk 0:02:44]}  Ne8 {[%clk 0:02:21]} 18. f5 {[%clk 0:02:44]}  b4 {[%clk 0:02:16]} 19. bxa3 {[%clk 0:02:38]}  bxc3 {[%clk 0:02:04]} 20. Qxa6 {[%clk 0:02:35]}  Qd8 {[%clk 0:01:14]} 21. fxe6 {[%clk 0:02:18]}  fxe6 {[%clk 0:01:13]} 22. Bh3 {[%clk 0:02:19]}  Nc7 {[%clk 0:01:09]} 23. Qc4 {[%clk 0:02:18]}  Bxg5 {[%clk 0:01:03]} 24. Nxe6 {[%clk 0:02:15]}  Nxe6 {[%clk 0:00:59]} 25. Bxe6+ {[%clk 0:02:15]}  Kh8 {[%clk 0:00:59]} 26. Qd5 {[%clk 0:02:04]}  Bxc1 {[%clk 0:00:55]} 27. Rxc1 {[%clk 0:02:02]}  Rc5 {[%clk 0:00:49]} 28. Qxd6 {[%clk 0:01:57]}  Rg5+ {[%clk 0:00:27]} 29. Kh1 {[%clk 0:01:55]}  Qf6 {[%clk 0:00:28]} 30. Qd3 {[%clk 0:01:17]}  Bxe6 {[%clk 0:00:21]} 31. Rf1 {[%clk 0:01:17]}  Qe7 {[%clk 0:00:20]} 32. Qxc3 {[%clk 0:01:17]}  h6 {[%clk 0:00:19]} 33. Rg1 {[%clk 0:01:07]}  Bg4 {[%clk 0:00:17]} 0-1


[Site "https://www.chess.com"]

[Event "Titled Tuesday Blitz June 1 2021"]
[White "Shahade, Gregory"]
[Black "Titus, Andrew"]
[WhiteFideId "2009064"]
[BlackFideId "2059770"]
[WhiteElo "2701"]
[BlackElo "2044"]
[Result "0-1"]
[Round "11"]
[TimeControl "180+1"]
[Date "2021.06.01"]
[WhiteClock "0:00:02"]
[BlackClock "0:00:59"]

1. e4 {[%clk 0:03:00]}  c5 {[%clk 0:02:59]} 2. Nf3 {[%clk 0:03:00]}  d6 {[%clk 0:02:59]} 3. d4 {[%clk 0:02:58]}  cxd4 {[%clk 0:03:00]} 4. Nxd4 {[%clk 0:02:58]}  Nf6 {[%clk 0:03:01]} 5. Nc3 {[%clk 0:02:59]}  a6 {[%clk 0:03:01]} 6. Be3 {[%clk 0:02:57]}  e6 {[%clk 0:03:00]} 7. f3 {[%clk 0:02:57]}  Nbd7 {[%clk 0:03:01]} 8. Qd2 {[%clk 0:02:56]}  b5 {[%clk 0:02:57]} 9. g4 {[%clk 0:02:55]}  h6 {[%clk 0:02:57]} 10. O-O-O {[%clk 0:02:54]}  b4 {[%clk 0:02:52]} 11. Nce2 {[%clk 0:02:54]}  Qc7 {[%clk 0:02:52]} 12. h4 {[%clk 0:02:53]}  d5 {[%clk 0:02:51]} 13. g5 {[%clk 0:02:52]}  hxg5 {[%clk 0:02:50]} 14. exd5 {[%clk 0:02:49]}  Nxd5 {[%clk 0:02:49]} 15. Bxg5 {[%clk 0:02:46]}  Ne5 {[%clk 0:02:43]} 16. Nf4 {[%clk 0:02:36]}  Bb7 {[%clk 0:02:39]} 17. Re1 {[%clk 0:01:58]}  Bd6 {[%clk 0:02:21]} 18. Nfxe6 {[%clk 0:01:51]}  fxe6 {[%clk 0:02:19]} 19. Nxe6 {[%clk 0:01:52]}  Qf7 {[%clk 0:02:18]} 20. Bh3 {[%clk 0:01:47]}  Nxf3 {[%clk 0:01:50]} 21. Nd8+ {[%clk 0:01:02]}  Kf8 {[%clk 0:01:50]} 22. Nxf7 {[%clk 0:01:00]}  Nxd2 {[%clk 0:01:50]} 23. Nxh8 {[%clk 0:01:00]}  Nf3 {[%clk 0:01:48]} 24. Rhf1 {[%clk 0:00:54]}  Nf6 {[%clk 0:01:43]} 25. Re3 {[%clk 0:00:42]}  Kg8 {[%clk 0:01:39]} 26. Ng6 {[%clk 0:00:36]}  Nxg5 {[%clk 0:01:37]} 27. hxg5 {[%clk 0:00:37]}  Nd5 {[%clk 0:01:37]} 28. Be6+ {[%clk 0:00:33]}  Kh7 {[%clk 0:01:37]} 29. Bxd5 {[%clk 0:00:26]}  Bxd5 {[%clk 0:01:36]} 30. Rd3 {[%clk 0:00:22]}  Kxg6 {[%clk 0:01:26]} 31. Rxd5 {[%clk 0:00:22]}  Be7 {[%clk 0:01:27]} 32. Re1 {[%clk 0:00:21]}  Bxg5+ {[%clk 0:01:26]} 33. Kb1 {[%clk 0:00:21]}  Bf6 {[%clk 0:01:27]} 34. Rg1+ {[%clk 0:00:17]}  Kf7 {[%clk 0:01:27]} 35. Rg4 {[%clk 0:00:18]}  a5 {[%clk 0:01:26]} 36. Rd1 {[%clk 0:00:15]}  Rb8 {[%clk 0:01:24]} 37. Rc4 {[%clk 0:00:13]}  Rb5 {[%clk 0:01:24]} 38. b3 {[%clk 0:00:13]}  Ke6 {[%clk 0:01:20]} 39. Re4+ {[%clk 0:00:13]}  Kf7 {[%clk 0:01:20]} 40. Rf4 {[%clk 0:00:13]}  Ke6 {[%clk 0:01:20]} 41. Rdf1 {[%clk 0:00:13]}  Rd5 {[%clk 0:01:18]} 42. Re4+ {[%clk 0:00:13]}  Kf7 {[%clk 0:01:18]} 43. Ref4 {[%clk 0:00:13]}  Ke6 {[%clk 0:01:18]} 44. Re1+ {[%clk 0:00:13]}  Kf7 {[%clk 0:01:18]} 45. Rc4 {[%clk 0:00:14]}  Rf5 {[%clk 0:01:14]} 46. Rc7+ {[%clk 0:00:12]}  Kg6 {[%clk 0:01:15]} 47. Rg1+ {[%clk 0:00:13]}  Kh7 {[%clk 0:01:14]} 48. Rc4 {[%clk 0:00:12]}  Kg8 {[%clk 0:01:12]} 49. Rcg4 {[%clk 0:00:11]}  Kf7 {[%clk 0:01:12]} 50. a3 {[%clk 0:00:11]}  bxa3 {[%clk 0:01:11]} 51. Ka2 {[%clk 0:00:12]}  Bb2 {[%clk 0:01:06]} 52. Rc4 {[%clk 0:00:12]}  Rf2 {[%clk 0:01:03]} 53. Rg5 {[%clk 0:00:10]}  Rf1 {[%clk 0:01:02]} 54. b4 {[%clk 0:00:04]}  a4 {[%clk 0:01:02]} 55. Rc7+ {[%clk 0:00:02]}  Kf6 {[%clk 0:00:59]} 0-1


[Site "https://www.chess.com"]